Workbook

Sheet Instructions
A6: Instructions
A8: 1.) Find a quiet place and allow yourself the full four hour exam period to practice. Treat this just as you would the real exam.
A10: 2.) Use the Navigator worksheet to see a brief description of each question, its point value and navigate between questions in your preferred order.
A12: 3.) Answer each question either to the side or below the grey question area.
A14: 4.) Use cell B1 on each question worksheet to mark whether you finished the question or not. You should use this feature to
A15: reflect your confidence in your answer. This way you'll know if you're on the money or your guesses were lucky.
A17: 5.) Grade each question harshly. It's better to put in extra reviewing time now than find the examiners aren't as generous as you hoped.
A18: Use increments of 0.25 when scoring; pay attention to the language used in the question and the point value. An "identify" question
A19: is likely 0.25 per item while an "explain" or "briefly justify" gets 0.25 for the item and another 0.25 for the justification.
A21: 6.) Enter your estimated score for each sub-part of a question in the box beneath the sub-part point value. They look like:
A23: 7.) Use the Point Grid to see your score and a breakdown of where you scored well and where you didn't.
A25: 8.) Find the top five questions where you lost the most points. These are the topics you need to review the most intensely in the
A26: next day or so.
A28: 9.) On the BattleActs site → Custom Battles → BattleCards - Prior Exams → Select this exam and mark the cards you got right and wrong.
A29: This allows your Battle Readiness Quotient (BRQ) to track your strengths and weaknesses.
A31: 10.) Use the Reset Exam button on the Point Grid worksheet to clear all of your work ready for a new attempt at this exam later.
A32: slay the beast

Sheet Point Grid
A5: Practice Exam 1 – Exam 8
B6: Total Point Value | C6: Sub-Part of Question | L6: Your Score | M6: Sub-Part of Question
A7: Question | C7: (a) | D7: (b) | E7: (c) | F7: (d) | G7: (e) | H7: (f) | I7: (g) | J7: Status | L7: Question | M7: (a) | N7: (b) | O7: (c) | P7: (d) | Q7: (e) | R7: (f) | S7: (g)
A8: 1 | B8: =SUM(C8:I8) -> 3.50 | C8: 2.50 | D8: 1.00 | J8: =INDIRECT("'"&A8&"'!B1") -> Finished | L8: =A8 -> 1 | M8: =_xlfn.IFNA(IF(ISBLANK(INDEX(INDIRECT("'"&$L8&"'!$A:$A"),MATCH(M$7,INDIRECT("'"&$L8&"'!$A:$A"),0)+2)),"",INDEX(INDIRECT("'"&$L8&"'!$A:$A"),MATCH(M$7,INDIRECT("'"&$L8&"'!$A:$A"),0)+2)),"") -> 2.50 | N8: 1.00
A9: 2 | B9: =SUM(C9:I9) -> 2.00 | C9: 2.00 | J9: =INDIRECT("'"&A9&"'!B1") -> Finished | L9: =A9 -> 2 | M9: 2.00
A10: 3 | B10: 2.00 | C10: 2.00 | J10: Finished | L10: 3 | M10: 2.00
A11: 4 | B11: 1.50 | C11: 1.50 | J11: Finished | L11: 4 | M11: 1.50
A12: 5 | B12: 1.50 | C12: 1.50 | J12: Finished | L12: 5 | M12: 1.50
A13: 6 | B13: 2.75 | C13: 1.50 | D13: 0.25 | E13: 1.00 | J13: Finished | L13: 6 | M13: 1.50 | N13: 0.25 | O13: 1.00
A14: 7 | B14: 3.00 | C14: 2.50 | D14: 0.50 | J14: Finished | L14: 7 | M14: 2.50 | N14: 0.50
A15: 8 | B15: 3.50 | C15: 1.50 | D15: 2.00 | J15: Finished | L15: 8 | M15: 1.50 | N15: 2.00
A16: 9 | B16: 4.00 | C16: 4.00 | J16: Finished | L16: 9 | M16: 4.00
A17: 10 | B17: 1.75 | C17: 0.50 | D17: 0.25 | E17: 0.25 | F17: 0.75 | J17: Finished | L17: 10 | M17: 0.50 | N17: 0.25 | O17: 0.25 | P17: 0.75
A18: 11 | B18: 2.75 | C18: 0.50 | D18: 0.50 | E18: 0.50 | F18: 0.50 | G18: 0.75 | J18: Finished | L18: 11 | M18: =_xlfn.IFNA(IF(ISBLANK(INDEX(INDIRECT("'"&$L18&"'!$A:$A"),MATCH(M$7,INDIRECT("'"&$L18&"'!$A:$A"),0)+2)),"",INDEX(INDIRECT("'"&$L18&"'!$A:$A"),MATCH(M$7,INDIRECT("'"&$L18&"'!$A:$A"),0)+2)),"") -> 0.50 | N18: 0.50 | O18: 0.50 | P18: 0.50 | Q18: 0.75
A19: 12 | B19: 3.00 | C19: 1.00 | D19: 1.00 | E19: 1.00 | J19: Finished | L19: 12 | M19: 1.00 | N19: 1.00 | O19: 1.00
A20: 13 | B20: 2.00 | C20: 0.50 | D20: 0.50 | E20: 0.50 | F20: 0.50 | J20: Finished | L20: 13 | M20: 0.50 | N20: 0.50 | O20: 0.50 | P20: 0.50
A21: 14 | B21: 2.00 | C21: 2.00 | J21: Finished | L21: 14 | M21: 2.00
A22: 15 | B22: 4.00 | C22: 2.00 | D22: 2.00 | J22: Finished | L22: 15 | M22: 2.00 | N22: 2.00
A23: 16 | B23: 4.00 | C23: 2.00 | D23: 2.00 | J23: Finished | L23: 16 | M23: 2.00 | N23: 2.00
A24: 17 | B24: 1.50 | C24: 1.50 | J24: Finished | L24: 17 | M24: 1.50
A25: 18 | B25: 3.00 | C25: 2.50 | D25: 0.50 | J25: Finished | L25: 18 | M25: 2.50 | N25: 0.50
A26: 19 | B26: 2.50 | C26: 1.50 | D26: 1.00 | J26: Finished | L26: 19 | M26: 1.50 | N26: 1.00
A27: 20 | B27: 2.50 | C27: 0.50 | D27: 0.50 | E27: 0.75 | F27: 0.75 | J27: Finished | L27: 20 | M27: 0.50 | N27: 0.50 | O27: 0.75 | P27: 0.75
A28: 21 | B28: 2.25 | C28: 1.00 | D28: 1.00 | E28: 0.25 | J28: Finished | L28: 21 | M28: 1.00 | N28: 1.00 | O28: 0.25
A29: 22 | B29: 1.75 | C29: 0.75 | D29: 0.50 | E29: 0.50 | J29: Finished | L29: 22 | M29: 0.75 | N29: 0.50 | O29: 0.50
A30: 23 | B30: 2.00 | C30: 0.50 | D30: 1.00 | E30: 0.50 | J30: =INDIRECT("'"&A30&"'!B1") -> Finished | L30: =A30 -> 23 | M30: 0.50 | N30: 1.00 | O30: 0.50
A32: Total | B32: =SUM(B8:B30) -> 58.75 | L32: TOTAL | M32: =IF(SUM(IF(M8:S30="",0,1))=0,"",SUM(M8:S30)) -> 58.75 | O32: Percentage: | P32: =IF(M32="","",M32/B32) -> 100.0%
L34: Passing Score: | M34: =MROUND(72%*B32,0.25) -> 42.25

Sheet Navigator
A6: Navigator – Select a question to go to it
A8: Question # | H8: Status
A9: Q1 -- Bailey & Simon -- Relative Credibility -- 3.50 points | H9: ='Point Grid'!J8 -> Finished
A10: Q2 -- GLM -- Estimate probability using GLM output -- 2.00 points | H10: ='Point Grid'!J9 -> Finished
A11: Q3 -- GLM -- Number of Parameters within a GLM -- 2.00 points | H11: ='Point Grid'!J10 -> Finished
A12: Q4 -- Mahler -- Criteria for Credibility -- 1.50 points | H12: ='Point Grid'!J11 -> Finished
A13: Q5 -- Couret & Venter -- Determine best approach using SSE -- 1.50 points | H13: ='Point Grid'!J12 -> Finished
A14: Q6 -- GLM -- Adding variables to a GLM or GLMM -- 2.75 points | H14: ='Point Grid'!J13 -> Finished
A15: Q7 -- Fisher -- Rating Plan Equity -- 3.00 points | H15: ='Point Grid'!J14 -> Finished
A16: Q8 -- Bahnemann -- Excess Layer Inflation -- 3.50 points | H16: ='Point Grid'!J15 -> Finished
A17: Q9 -- ISO -- Calculate experience modification factor -- 4.00 points | H17: ='Point Grid'!J16 -> Finished
A18: Q10 -- Fisher -- Split Modification Formula -- 1.75 points | H18: ='Point Grid'!J17 -> Finished
A19: Q11 -- ISO -- Schedule Rating -- 2.75 points | H19: ='Point Grid'!J18 -> Finished
A20: Q12 -- Fisher -- Credibility Functions -- 3.00 points | H20: ='Point Grid'!J19 -> Finished
A21: Q13 -- Fisher -- Balanced Rating Plan -- 2.00 points | H21: ='Point Grid'!J20 -> Finished
A22: Q14 -- Fisher -- Large Dollar Deductible Premium -- 2.00 points | H22: ='Point Grid'!J21 -> Finished
A23: Q15 -- Fisher -- Table M and Large Dollar Deductible Premium -- 4.00 points | H23: ='Point Grid'!J22 -> Finished
A24: Q16 -- Fisher -- Retrospective Premium and Savings -- 4.00 points | H24: ='Point Grid'!J23 -> Finished
A25: Q17 -- Bahnemann -- Risk-adjusted ILFs -- 1.50 points | H25: ='Point Grid'!J24 -> Finished
A26: Q18 -- NCCI Experience Rating-- Calculate experience mod -- 3.00 points | H26: ='Point Grid'!J25 -> Finished
A27: Q19 -- Bahnemann -- Pricing with Straight Deductibles -- 2.50 points | H27: ='Point Grid'!J26 -> Finished
A28: Q20 -- NCCI Circular -- Policy Excess Ratio and Expected Claims -- 2.50 points | H28: ='Point Grid'!J27 -> Finished
A29: Q21 -- Bahnemann -- Mean Excess Claim Size -- 2.25 points | H29: ='Point Grid'!J28 -> Finished
A30: Q22 -- GLM -- Model Refinement -- 1.75 points | H30: ='Point Grid'!J29 -> Finished
A31: Q23 -- Holmes -- Lasso Credibility Coefficients -- 2.00 points | H31: ='Point Grid'!J30 -> Finished

Sheet 1
A1: 1 | B1: Finished | H1: Navigator | J1: Solution
I2: a.) | J2: Since high frequency territories are also high average premium territories and the
A3: Points | B3: The following information can be used to calculate the credibility assigned to the | J3: territory differentials are proper, we use the premiums at present B rates as the exposure base.
A4: =INDEX('Point Grid'!B:B,MATCH('1'!A1,'Point Grid'!A:A,0)) -> 3.5 | B4: experience of a single private passenger car.
J5: Group B frequency | L5: =F10/E10 -> 0.00036
B6: Group | C6: Last Accident | D6: Earned Car Years | E6: Premium at Present B Rates | F6: Number of Claims | J6: Total frequency | L6: =F11/E11 -> 0.0001280991736
B7: A | C7: 3+ | D7: 671,000 | E7: 600,000,000 | F7: 60,000 | J7: Group B relative frequency | M7: =L5/L6 -> 2.810322581
B8: X | C8: 2 | D8: 553,000 | E8: 225,000,000 | F8: 25,000
B9: Y | C9: 1 | D9: 120,000 | E9: 93,000,000 | F9: 21,000 | J9: Set the experience modification equal to the Group B relative frequency.
B10: B | C10: 0 | D10: M | E10: 50,000,000 | F10: 18,000
B11: Total | D11: =TEXT(SUM(D7:D9),"0,000")&" + M" -> 1,344,000 + M | E11: =SUM(E7:E10) -> 968,000,000 | F11: =SUM(F7:F10) -> 124,000 | J11: Mod = Z*R + (1 - Z) | M11: Need to solve for R, we're given Z = 0.167 for group B
J12: R = | K12: =(M7-(1-0.167))/0.167 -> 11.84025497
B13: You may assume the following:
B14: • High frequency territories are also high average premium territories. | J14: Now recall R = 1/ Probability of at least one claim
B15: • Territory differentials are proper. | J15: Probability of at least one claim = 1 - Probability of no claims
B16: • The total claim frequency for the entire class does not change from year to year. | J16: Therefore, probability of no claims = | N16: =1-1/K12 -> 0.9155423593
A18: (a) | B18: Calculate M, the earned car years for Group B, given that the credibility for an insured that has | J18: Since we're told to use a Poisson distribution, P(no claims) = exp(-lambda)
A19: =INDEX('Point Grid'!$C$8:$I$28,MATCH($A$1,'Point Grid'!$A$8:$A$28,0),MATCH(A18,'Point Grid'!$C$7:$I$7,0)) -> 2.5 | B19: had no claim-free years is equal to 0.167. | J19: Solving for lambda gives
A20: 2.5 | J20: lambda = | K20: =-LN(N16) -> 0.08823864687
A22: (b) | B22: Calculate the credibility for the group of risks that have been claim free for two or more years. | J22: Since we have a Poisson distribution, the expected frequency is lambda.
A23: =INDEX('Point Grid'!$C$8:$I$28,MATCH($A$1,'Point Grid'!$A$8:$A$28,0),MATCH(A22,'Point Grid'!$C$7:$I$7,0)) -> 1 | J23: Since the total claim frequency for the entire class doesn't change from year to year we have
A24: 1 | J24: lambda = Total number of claims / Total earned car years
J25: So we can solve for M
J26: M = | K26: =F11/K20-SUM(D7:D9) -> 61,280
I28: b.) | J28: 2+ years claim free frequency | M28: =SUM(F7:F8)/SUM(E7:E8) -> 0.00010303 | N28: ← Remember to continue working with your chosen exposure base
J29: Relative frequency | M29: =M28/L6 -> 0.8043010753
J31: Since 2+ years claims free we have R = 0.
J32: Set the experience modification equal to the relative claim frequency.
J33: Then mod = ZR + (1 - Z) = 1 - Z
J34: Z = | K34: =1-M29 -> 19.6%

Sheet 2
A1: 2 | B1: Finished | H1: Navigator | J1: Solution
I2: a.) | J2: The logit link function is given by:
A3: Points | B3: You are given the following output from a GLM to estimate the probability of a claim:
A4: =INDEX('Point Grid'!B:B,MATCH('2'!A1,'Point Grid'!A:A,0)) -> 2 | B4: • The actuary selected a Binomial distribution. | J4: Linear predictor = intercept + driver gender + vehicle body + territory
B5: • The actuary selected the logit link function. | J5: Intercept | K5: =C8 -> -1.485
J6: Gender | K6: 0 | L6: ← Since Female is not listed, it is the base class, so its parameter is 0.000 (no deviation needed)
B7: Parameter | C7: β | J7: ln(Age) | K7: =C22*LN(25) -> -0.1609437912 | L7: ← Remember to log the age before applying the coefficient
B8: Intercept | C8: -1.485 | J8: Vehicle Body | K8: =C13 -> -1.175
J9: Territory | K9: =C27 -> -0.101
B10: Vehicle Body
B11: Coupe | C11: -0.881 | J11: Linear Predictor | L11: =SUM(K5:K9) -> -2.921943791
B12: Roadster | C12: -1.047
B13: Sedan | C13: -1.175 | J13: Solve for the claim probability, u, by inverting the link function
B14: Station Wagon | C14: -1.083 | J14: u = | K14: =1/(1+EXP(-L11)) -> 5.11%
B15: Truck | C15: -1.118
B16: Utility | C16: -1.330
B18: Driver Gender
B19: Male | C19: -0.025
B21: Driver Age
B22: ln(age) | C22: -0.05
B24: Territory
B25: B | C25: 0.094
B26: C | C26: 0.037
B27: D | C27: -0.101
A29: (a) | B29: Calculate the estimated probability of a claim for:
A30: =INDEX('Point Grid'!$C$8:$I$28,MATCH($A$1,'Point Grid'!$A$8:$A$28,0),MATCH(A29,'Point Grid'!$C$7:$I$7,0)) -> 2 | B30: • Driver Gender: Female
A31: 2 | B31: • Driver Age: 25
B32: • Vehicle Body: Sedan
B33: • Territory: D

Sheet 3
A1: 3 | B1: Finished | H1: Navigator | J1: Solution
I2: a.) | J2: 4 | K2: Vehicle price is a third order polynomial so has 4 variables including the intercept
A3: Points | B3: You are given a GLM which models liability claim size using the following explanatory variables: | J3: 1 | K3: Average driver age is a first order polynomial (e.g. a + b*x) so has 2 variables.
A4: =INDEX('Point Grid'!B:B,MATCH('3'!A1,'Point Grid'!A:A,0)) -> 2 | K4: However, we've already accounted for the intercept so only 1 new variable.
B5: • Vehicle price, which is a continuous variable model with a third order polynomial. | J5: 3 | K5: Number of drivers has 4 categories but we do not count the base level.
B6: • Average driver age, which is a continuous variable modeled with a first order polynomial. | J6: 1 | K6: Gender has 2 categories but we do not count the base level.
B7: • Number of drivers, which is a categorical variable with four levels. | J7: 1 | K7: Interaction between a two level categorical variable and a continuous variable
B8: • Gender, which is a categorical variable with two levels. | K8: adds a single variable.
B9: • There is only one interaction in the model, which is between gender and average driver age.
J10: =SUM(J2:J7) -> 10 | K10: Maximum number of β parameters
A11: (a) | B11: Determine the maximum number of β parameters in this model. | K11: (The actual number of parameters could be less if some of these are zero.)
A12: =INDEX('Point Grid'!$C$8:$I$28,MATCH($A$1,'Point Grid'!$A$8:$A$28,0),MATCH(A11,'Point Grid'!$C$7:$I$7,0)) -> 2
A13: 2

Sheet 4
A1: 4 | B1: Finished | G1: Navigator | I1: Solution
H2: a.) | I2: Meyers/Dorweiler criterion does not penalize for the size of the error, instead it penalizes if there
A3: Points | B3: Three experience rating plans have been developed and you are trying to evaluate | I3: is a pattern to the errors.
A4: =INDEX('Point Grid'!B:B,MATCH('4'!A1,'Point Grid'!A:A,0)) -> 1.5 | B4: which is optimal. Each rating plan has been tested on four different risks. | I4: Plan 3 has a downward trend in the error percentages so is not preferred by this measure.
B6: The following tables summarize the indicated modifications and the resulting errors. | I6: Compute the correlation between the predicted modification factors and the errors.
I7: Plan | J7: Correlation
B8: Plan 1 | I8: 1 | J8: =CORREL(C10:C13,D10:D13) -> 0.943
B9: Risk # | C9: Predicted Modification Factor | D9: Error | I9: 2 | J9: =CORREL(C17:C20,D17:D20) -> 0
B10: 1 | C10: 1.2 | D10: 50% | I10: 3 | J10: =CORREL(C24:C27,D24:D27) -> 0.9594220863
B11: 2 | C11: 1.2 | D11: 45%
B12: 3 | C12: 0.7 | D12: 20% | I12: Since plans 1 and 3 have high correlation and plan 2 has no correlation, using the Meyers/Dorweiler
B13: 4 | C13: 0.7 | D13: 30% | I13: criterion we prefer plan 2.
B15: Plan 2 | I15: Plan | J15: MSE
B16: Risk # | C16: Predicted Modification Factor | D16: Error | I16: 1 | J16: =SUMSQ(D10:D13)/COUNT(D10:D13) -> 14.563%
B17: 5 | C17: 1.2 | D17: 8% | I17: 2 | J17: =SUMSQ(D17:D20)/COUNT(D17:D20) -> 2.740%
B18: 6 | C18: 1.2 | D18: -8% | I18: 3 | J18: =SUMSQ(D24:D27)/COUNT(D24:D27) -> 0.098%
B19: 7 | C19: 0.6 | D19: -22%
B20: 8 | C20: 0.6 | D20: 22% | I20: Since plan 3 has the lowest mean squared error, this is the preferred plan under the MSE criterion.
B22: Plan 3
B23: Risk # | C23: Predicted Modification Factor | D23: Error
B24: 9 | C24: 1.4 | D24: 3%
B25: 10 | C25: 1.3 | D25: 1%
B26: 11 | C26: 0.75 | D26: -2%
B27: 12 | C27: 0.65 | D27: -5%
A29: (a) | B29: Which is the preferred plan based on the Meyers/Dorweiler criterion?
A30: =INDEX('Point Grid'!$C$8:$I$28,MATCH($A$1,'Point Grid'!$A$8:$A$28,0),MATCH(A29,'Point Grid'!$C$7:$I$7,0)) -> 1.5 | B30: Which is the preferred plan based on the mean squared error criterion?
A31: 1.5 | B31: Explain your answer to each part above.

Sheet 5
A1: 5 | B1: Finished | G1: Navigator | I1: Solution
H2: a.) | I2: Since the sample means are normalized within the hazard group, the total hazard group
A3: Points | B3: A multi-dimensional credibility technique has been developed to predict claim frequencies | I3: relativity is 1.000.
A4: =INDEX('Point Grid'!B:B,MATCH('5'!A1,'Point Grid'!A:A,0)) -> 1.5 | B4: for permanent total (PT) claims.
B5: • Seven years of data were collected. | I5: Hazard group approach
B6: • The technique produced a raw predicted relativity based on the oldest five years. | I6: Quintile | J6: HG | K6: Holdout | L6: (HG - Holdout)^2
B7: • The most recent two years were used as the holdout sample. | I7: 1 | J7: 1 | K7: =C11 -> 0.55 | L7: =(J7-K7)^2 -> 0.2025
B8: • The sample means are normalized within a hazard group. | I8: 2 | J8: 1 | K8: =C12 -> 0.9 | L8: =(J8-K8)^2 -> 0.01
I9: 3 | J9: 1 | K9: 1.1 | L9: 0.01
B10: Quintile | C10: Holdout Sample Relativity | D10: Prediction Based on Raw | E10: Prediction Based on Credibility Procedure | I10: 4 | J10: 1 | K10: 1.25 | L10: 0.0625
B11: 1 | C11: 0.55 | D11: 0.4 | E11: 0.45 | I11: 5 | J11: 1 | K11: 1.5 | L11: 0.25
B12: 2 | C12: 0.9 | D12: 0.6 | E12: 0.7 | I12: Total hazard group SSE | L12: =SUM(L7:L11) -> 0.54
B13: 3 | C13: 1.1 | D13: 1.05 | E13: 1.15
B14: 4 | C14: 1.25 | D14: 1.5 | E14: 1.3 | I14: Raw approach
B15: 5 | C15: 1.5 | D15: 2.5 | E15: 1.9 | I15: Quintile | J15: Raw | K15: Holdout | L15: (HG - Holdout)^2
I16: 1 | J16: =D11 -> 0.4 | K16: =C11 -> 0.55 | L16: =(J16-K16)^2 -> 0.0225
A17: (a) | B17: Using the sum of squared error, demonstrate whether the multi-dimensional credibility | I17: 2 | J17: =D12 -> 0.6 | K17: =C12 -> 0.9 | L17: =(J17-K17)^2 -> 0.09
A18: =INDEX('Point Grid'!$C$8:$I$28,MATCH($A$1,'Point Grid'!$A$8:$A$28,0),MATCH(A17,'Point Grid'!$C$7:$I$7,0)) -> 1.5 | B18: technique produces an improved estimate over the estimates produced using the raw relativities | I18: 3 | J18: 1.05 | K18: 1.1 | L18: 0.0025
A19: 1.5 | B19: and the total hazard group relativities. | I19: 4 | J19: 1.5 | K19: 1.25 | L19: 0.0625
I20: 5 | J20: 2.5 | K20: 1.5 | L20: 1
I21: Raw SSE | L21: =SUM(L16:L20) -> 1.1775
I23: Multi-dimensional approach
I24: Quintile | J24: Multi-dim. | K24: Holdout | L24: (HG - Holdout)^2
I25: 1 | J25: =E11 -> 0.45 | K25: =C11 -> 0.55 | L25: =(J25-K25)^2 -> 0.01
I26: 2 | J26: =E12 -> 0.7 | K26: =C12 -> 0.9 | L26: =(J26-K26)^2 -> 0.04
I27: 3 | J27: 1.15 | K27: 1.1 | L27: 0.0025
I28: 4 | J28: 1.3 | K28: 1.25 | L28: 0.0025
I29: 5 | J29: 1.9 | K29: 1.5 | L29: 0.16
I30: Multi-dimensional SSE | L30: =SUM(L25:L29) -> 0.22
I32: Since the multi-dimensional approach has the lowest SSE it is an improvement over the
I33: hazard group membership method and the raw method.

Sheet 6
A1: 6 | B1: Finished | I1: Navigator | K1: Solution
J2: a.) | K2: AIC = -2*log-likelihood + 2p
A3: Points | B3: You are testing the addition of a new categorical variable into an existing GLM, and are | K3: BIC = -2*log-likelihood + p*ln(n)
B4: given the following information:
K5: If there are p parameters in the old model then the new model has p+q parameters once the new variable is added.
B6: • A is the change in AIC and B is the change in BIC after adding the new variable.
B7: • B > A + 100 | K7: A = Change in AIC = AIC_new - AIC_old = (-2*log-likelihood_new + 2(p+q)) - (-2*log-likelihood_old + 2p) = -2*(ll_new - ll_old) + 2q
B9: 5,000 | C9: Number of observations in the model | K9: B = Change in BIC = BIC_new - BIC_old = -2*(ll_new - ll_old) +q*ln(n)
A11: (a) | B11: Calculate the minimum possible number of levels in the new categorical variable. | K11: B - A > 100 implies q*ln(n) - 2q > 100
A12: =INDEX('Point Grid'!$C$8:$I$28,MATCH($A$1,'Point Grid'!$A$8:$A$28,0),MATCH(A11,'Point Grid'!$C$7:$I$7,0)) -> 1.5 | K12: ln(n) = | L12: =LN(B9) -> 8.517193191
A13: 1.5
K14: so q > | L14: =100/(L12-2) -> 15.3440288
B15: Suppose instead the new categorical is added as a random effect, turning the GLM into a
B16: GLMM. | K16: This means q is at least 16.
A17: (b) | B17: Identify the minimum possible number of parameters added to the model when the new | K17: Since the base category doesn't get its own parameter in a GLM there must be a minimum of 17 levels.
A18: =INDEX('Point Grid'!$C$8:$I$28,MATCH($A$1,'Point Grid'!$A$8:$A$28,0),MATCH(A17,'Point Grid'!$C$7:$I$7,0)) -> 0.25 | B18: categorical variable is introduced.
A19: 0.25 | J19: b.) | K19: Random effects in a GLMM do not include a base level. Each of the levels gets its own parameter for a minimum of 17 parameters added.
B21: A colleague suggests the GLM approach is better than the GLMM approach because the | J21: c.) | K21: The GLM approach assumes the data is fully credible. The new categorical variable has at least 17 levels and we only have 5,000 observations
B22: GLM coefficients are greater in magnitude than those produced by the GLMM for the | K22: in the model. This means the data for any level is unlikely to be highly credible.
B23: new categorical variable. | K23: Using a GLMM is a way of introducing classical credibility into a GLM for multi-level categorical variables. As the data for a level
K24: becomes more credible, the associated GLMM coefficient moves away from the grand mean and approaches
A25: (c) | B25: Briefly describe an issue presented by the GLM approach and explain how the | K25: the standard GLM coefficient. This reduces the chance of reacting to noise.
A26: =INDEX('Point Grid'!$C$8:$I$28,MATCH($A$1,'Point Grid'!$A$8:$A$28,0),MATCH(A25,'Point Grid'!$C$7:$I$7,0)) -> 1 | B26: GLMM approach is an improvement.
A27: 1

Sheet 7
A1: 7 | B1: Finished | H1: Navigator | J1: Solution
I2: a.) | J2: We need to compute the manual and standard loss ratios for each insured across each rating plan.
A3: Points | B3: The following information was taken from two different experience rating plans: | J3: Make sure to order the risks by increasing experience modification.
A4: =INDEX('Point Grid'!B:B,MATCH('7'!A1,'Point Grid'!A:A,0)) -> 3
C5: Experience Modification | E5: Experience Data | J5: Plan A
B6: Insured | C6: Plan A | D6: Plan B | E6: Manual Premium | F6: Losses | J6: Insured | K6: Mod Rank | M6: Rank | N6: Insured | O6: Ranked Mod | P6: Manual Premium | Q6: Losses | R6: Manual LR | S6: Standard LR
B7: 1 | C7: 0.8 | D7: 1.03 | E7: 75,000 | F7: 60,000 | J7: 1 | K7: =_xlfn.RANK.AVG(C7,$C$7:$C$11,1) -> 1 | M7: 1 | N7: =INDEX($J$7:$J$11,MATCH(M7,$K$7:$K$11,0)) -> 1 | O7: =INDEX($C$7:$C$11,MATCH(M7,$K$7:$K$11,0)) -> 0.8 | P7: =INDEX($E$7:$E$11,MATCH(M7,$K$7:$K$11,0)) -> 75,000 | Q7: =INDEX($F$7:$F$11,MATCH(M7,$K$7:$K$11,0)) -> 60,000 | R7: =Q7/P7 -> 80.0% | S7: =Q7/(P7*O7) -> 100.0%
B8: 2 | C8: 0.85 | D8: 0.69 | E8: 75,000 | F8: 58,000 | J8: 2 | K8: =_xlfn.RANK.AVG(C8,$C$7:$C$11,1) -> 2 | M8: 2 | N8: =INDEX($J$7:$J$11,MATCH(M8,$K$7:$K$11,0)) -> 2 | O8: =INDEX($C$7:$C$11,MATCH(M8,$K$7:$K$11,0)) -> 0.85 | P8: =INDEX($E$7:$E$11,MATCH(M8,$K$7:$K$11,0)) -> 75,000 | Q8: =INDEX($F$7:$F$11,MATCH(M8,$K$7:$K$11,0)) -> 58,000 | R8: =Q8/P8 -> 77.3% | S8: =Q8/(P8*O8) -> 91.0%
B9: 3 | C9: 0.90 | D9: 0.75 | E9: 75,000 | F9: 61,000 | J9: 3 | K9: 3 | M9: 3 | N9: 3 | O9: 0.9 | P9: 75,000 | Q9: 61,000 | R9: 81.3% | S9: 90.4%
B10: 4 | C10: 0.91 | D10: 0.89 | E10: 125,000 | F10: 104,000 | J10: 4 | K10: 4 | M10: 4 | N10: 4 | O10: 0.91 | P10: 125,000 | Q10: 104,000 | R10: 83.2% | S10: 91.4%
B11: 5 | C11: 0.96 | D11: 0.87 | E11: 125,000 | F11: 116,000 | J11: 5 | K11: 5 | M11: 5 | N11: 5 | O11: 0.96 | P11: 125,000 | Q11: 116,000 | R11: 92.8% | S11: 96.7%
A13: (a) | B13: Demonstrate whether Plan A or Plan B appears to be more equitable. | J13: Plan B
A14: =INDEX('Point Grid'!$C$8:$I$28,MATCH($A$1,'Point Grid'!$A$8:$A$28,0),MATCH(A13,'Point Grid'!$C$7:$I$7,0)) -> 2.5 | J14: Insured | K14: Mod Rank | M14: Rank | N14: Insured | O14: Ranked Mod | P14: Manual Premium | Q14: Losses | R14: Manual LR | S14: Standard LR
A15: 2.5 | J15: 1 | K15: =_xlfn.RANK.AVG(D7,$D$7:$D$11,1) -> 5 | M15: 1 | N15: =INDEX($J$15:$J$19,MATCH(M15,$K$15:$K$19,0)) -> 2 | O15: =INDEX($D$7:$D$11,MATCH(M15,$K$15:$K$19,0)) -> 0.69 | P15: =INDEX($E$7:$E$11,MATCH(M15,$K$15:$K$19,0)) -> 75,000 | Q15: =INDEX($F$7:$F$11,MATCH(M15,$K$15:$K$19,0)) -> 58,000 | R15: =Q15/P15 -> 77.3% | S15: =Q15/(P15*O15) -> 112.1%
J16: 2 | K16: =_xlfn.RANK.AVG(D8,$D$7:$D$11,1) -> 1 | M16: 2 | N16: =INDEX($J$15:$J$19,MATCH(M16,$K$15:$K$19,0)) -> 3 | O16: =INDEX($D$7:$D$11,MATCH(M16,$K$15:$K$19,0)) -> 0.75 | P16: =INDEX($E$7:$E$11,MATCH(M16,$K$15:$K$19,0)) -> 75,000 | Q16: =INDEX($F$7:$F$11,MATCH(M16,$K$15:$K$19,0)) -> 61,000 | R16: =Q16/P16 -> 81.3% | S16: =Q16/(P16*O16) -> 108.4%
A17: (b) | B17: Demonstrate whether Plan A or Plan B gives too much credit for good experience. | J17: 3 | K17: 2 | M17: 3 | N17: 5 | O17: 0.87 | P17: 125,000 | Q17: 116,000 | R17: 92.8% | S17: 106.7%
A18: =INDEX('Point Grid'!$C$8:$I$28,MATCH($A$1,'Point Grid'!$A$8:$A$28,0),MATCH(A17,'Point Grid'!$C$7:$I$7,0)) -> 0.5 | J18: 4 | K18: 4 | M18: 4 | N18: 4 | O18: 0.89 | P18: 125,000 | Q18: 104,000 | R18: 83.2% | S18: 93.5%
A19: 0.5 | J19: 5 | K19: 3 | M19: 5 | N19: 1 | O19: 1.03 | P19: 75,000 | Q19: 60,000 | R19: 80.0% | S19: 77.7%
J21: Manual premium dispersion | M21: =MAX(R7:R11)-MIN(R7:R11) -> 15.5%
J22: Both plans produce the same manual premiums so are equally good at identifying differences between risks.
J23: Alice: "If the two plans produced different manual premiums then you should comment on how well the plans identify differences
J24: between risks."
J26: Plan A standard loss ratio dispersion | N26: =MAX(S7:S11)-MIN(S7:S11) -> 9.6%
J27: Plan B standard loss ratio dispersion | N27: =MAX(S15:S19)-MIN(S15:S19) -> 34.4%
J29: Plan A has a much smaller range of standard loss ratios than Plan B. Further, Plan A has no discernable pattern to its standard loss ratios
J30: whereas Plan B has a clear downward trend. This means Plan A is more equitable.
I32: b.) | J32: Plan B gives too much credit for good experience because for insureds with the lowest mods have the highest standard loss ratios and as
J33: the mods increase the standard loss ratios decline.

Sheet 8
A1: 8 | B1: Finished | E1: Navigator | G1: Solution
F2: a.) | G2: First, detrend the large loss threshold for two years using the annual claim severity trend.
A3: Points | B3: A portfolio of insurance policies currently has the size of loss distribution shown below: | G3: =B22/((1+B27)^2) -> $200,012.16
A4: =INDEX('Point Grid'!B:B,MATCH('8'!A1,'Point Grid'!A:A,0)) -> 3.5 | B4: Occurrence Limit | C4: Probability that a Claim is less than the Occurrence Limit | D4: Expected Limited Severity for the Occurrence Limit | G4: We'll round this to $200,000 to use the table.
B5: 100,000 | C5: 67.3% | D5: $48,000 | G5: This means claims today that are over $200,000 are claims which we expect to be over $250,000 if they occur in
B6: 125,000 | C6: 68.9% | D6: $59,000 | G6: two year's time based on inflationary estimates.
B7: 150,000 | C7: 71.2% | D7: $63,500
B8: 175,000 | C8: 71.2% | D8: $68,000 | G8: Next, compute the percent of claims today in excess of the detrended limit.
B9: 200,000 | C9: 81.8% | D9: $73,500 | G9: P(X > $200,000) = | I9: =1-C9 -> 18.2%
B10: 225,000 | C10: 81.9% | D10: $90,500
B11: 250,000 | C11: 86.4% | D11: $120,000 | G11: Then, without accounting for exposure growth, (i.e. due to inflation alone) we expect an increase in large loss
B12: 300,000 | C12: 88.4% | D12: $123,000 | G12: claims after two years of:
B13: 400,000 | C13: 89.5% | D13: $124,000 | G13: =I9/(1-C11)-1 -> 33.8%
B14: 500,000 | C14: 90.3% | D14: $130,500
B15: 750,000 | C15: 90.3% | D15: $135,000 | G15: Lastly, account for the anticipated exposure growth and apply to the number of large loss claims today.
B16: 800,000 | C16: 93.0% | D16: $140,500 | G16: =B23*(1+B28)^2*(1+G13) -> 96.4
B17: 900,000 | C17: 95.7% | D17: $153,000
B18: 1,000,000 | C18: 97.2% | D18: $159,500 | F18: b.) | G18: Assume E[S] = E[N]*E[X]
B19: 1,250,000 | C19: 97.4% | D19: $178,000 | G19: E[N] = | H19: =G16 -> 96.4
B20: 1,500,000 | C20: 97.9% | D20: $186,000
H21: In 2 years | I21: Today | J21: Use
B22: $250,000 | C22: "Large Loss" threshold for the insurer today | G22: Upper limit | H22: =10^6+250000 -> $1,250,000 | I22: =H22/((1+B27)^2) -> $1,000,061 | J22: $1,000,000
B23: 50 | C23: It's estimated the portfolio policies will generate this many | G23: Lower limit | H23: =B22 -> $250,000 | I23: =H23/((1+B27)^2) -> $200,012 | J23: $200,000
C24: "large losses" during the next two years.
G25: Excess layer severity today: | I25: =(D18-D9)/(1-C9) -> $472,527.47 | J25: Remember - claims that go completely through the layer still contribute
B26: The actuary estimates the following: | J26: to the layer. Hence 1 - P(X > $200,000) in the denominator.
B27: 11.8% | C27: Annual claim severity inflationary trend | G27: Apply annual claim severity trend: | I27: =I25*(1+B27)^2 -> $590,623.43
B28: 20% | C28: Expected annual exposure growth | G28: This is E[X]
A30: (a) | B30: Calculate the expected number of claims that exceed the large loss threshold in two years time. | G30: Hence, E[S] =
A31: =INDEX('Point Grid'!$C$8:$I$28,MATCH($A$1,'Point Grid'!$A$8:$A$28,0),MATCH(A30,'Point Grid'!$C$7:$I$7,0)) -> 1.5 | G31: =G16*I27 -> $56,908,304.47
A32: 1.5
A34: (b) | B34: Calculate the expected losses for this portfolio in the layer $1,000,000 excess of $250,000 after
A35: =INDEX('Point Grid'!$C$8:$I$28,MATCH($A$1,'Point Grid'!$A$8:$A$28,0),MATCH(A34,'Point Grid'!$C$7:$I$7,0)) -> 2 | B35: two years.
A36: 2

Sheet 9
A1: 9 | B1: Finished | H1: Navigator | K1: Solution
J2: a.) | K2: Since the company has been with the same insurer on a claims-made program for the last 15 years
A3: Points | B3: Consider the following loss experience as of June 30, 2021 under a claims-made commercial general | K3: we may assume all data given is for mature claims-made policies.
A4: =INDEX('Point Grid'!B:B,MATCH('9'!A1,'Point Grid'!A:A,0)) -> 4 | B4: liability policy:
K5: The experience period for the policy we're pricing is the three years prior, lagged by one. So 1/1/2018 – 12/31/2020.
B6: Policy Year | C6: Claim Number | D6: Basic Limit Indemnity | E6: ALAE | K6: So claims 1 and 2 are not relevant.
B7: 2016 | C7: 1 | D7: $25,000 | E7: $1,000
B8: 2017 | C8: 2 | D8: $8,500 | E8: $0 | K8: First, we need to find the Company Subject Loss Cost (CSLC).
B9: 2018 | C9: 3 | D9: $100,000 | E9: $55,000 | K9: Since there's no information about shifts in exposure we assume we may use the standard approach for the CSLC
B10: 2018 | C10: 4 | D10: $55,000 | E10: $5,000 | K10: Year | L10: Type | M10: BLEL | N10: PAF 13B | O10: PAF 13C | P10: DeTrend | Q10: Total | R10: EER | S10: LDF | T10: Total
B11: 2020 | C11: 5 | D11: $0 | E11: $150,000 | K11: 2018 | L11: Prem/Ops | M11: =$B$18*$B$20 -> $68,000 | N11: =$D$28 -> 1.05 | O11: =$D$34 -> 0.94 | P11: =D44 -> 0.839 | Q11: =PRODUCT(M11:P11) -> 56,310 | R11: =$L$24 -> 0.917 | S11: 0 | T11: =PRODUCT(Q11:S11) -> 0
B12: 2020 | C12: 6 | D12: $32,000 | E12: $800 | K12: 2018 | L12: Products | M12: =$B$19*$B$20 -> $17,000 | N12: =$D$29 -> 1.24 | O12: =$D$35 -> 0.72 | P12: =D45 -> 0.777 | Q12: =PRODUCT(M12:P12) -> 11,793 | R12: =$L$24 -> 0.917 | S12: 0 | T12: =PRODUCT(Q12:S12) -> 0
K13: 2019 | L13: Prem/Ops | M13: =$B$18*$B$20 -> $68,000 | N13: =$D$28 -> 1.05 | O13: =$D$34 -> 0.94 | P13: =D42 -> 0.876 | Q13: 58,794 | R13: 0.917 | S13: 0 | T13: 0
B14: The policy being rated has the following characteristics: | K14: 2019 | L14: Products | M14: =$B$19*$B$20 -> $17,000 | N14: =$D$29 -> 1.24 | O14: =$D$35 -> 0.72 | P14: =D43 -> 0.828 | Q14: 12,567 | R14: 0.917 | S14: 0 | T14: 0
B15: • The policy always runs from January 1st through December 31st each year. | K15: 2020 | L15: Prem/Ops | M15: =$B$18*$B$20 -> $68,000 | N15: =$D$28 -> 1.05 | O15: =$D$34 -> 0.94 | P15: =D40 -> 0.916 | Q15: 61,478 | R15: 0.917 | S15: 0 | T15: 0
B16: • The company has been with the same insurer in a claims-made program for over 15 years. | K16: 2020 | L16: Products | M16: =$B$19*$B$20 -> $17,000 | N16: =$D$29 -> 1.24 | O16: =$D$35 -> 0.72 | P16: =D41 -> 0.882 | Q16: 13,387 | R16: 0.917 | S16: 0 | T16: 0
B17: • The company's annual basic limit premium is: | P17: CSLC → | Q17: =SUM(Q11:Q16) -> 214,329 | T17: =SUM(T11:T16) -> 0 | U17: ← Expected Future Development
B18: $100,000 | C18: Premises/Operations | K18: BLEL = annual basic limit premium * ELR
B19: $25,000 | C19: Products/Completed Operations | K19: PAF 13b takes the prospective policy type to a per-occurrence policy
B20: 68% | C20: Expected Loss Ratio | K20: PAF 13c takes the per-occurrence policy to the historical policy.
A22: (a) | B22: Calculate the experience modification factor for the policy effective between January 1 and | K22: Now look up the CSLC to get
A23: =INDEX('Point Grid'!$C$8:$I$28,MATCH($A$1,'Point Grid'!$A$8:$A$28,0),MATCH(A22,'Point Grid'!$C$7:$I$7,0)) -> 4 | B23: December 31, 2022. | K23: Z | L23: EER | M23: MSL
A24: 4 | K24: =C51 -> 0.38 | L24: =D51 -> 0.917 | M24: =E51 -> 153,400
B25: You may use the following information below:
C26: Occurrence | D26: Claims-Made Year in Program (YIP) | K26: Since we have a claims made policy the LDFs are all 0.
B27: Subline | C27: Policy | D27: Mature | E27: Fourth | F27: Third | G27: Second | H27: First | K27: Apply the EER and LDFs to the Totals used for the CSLC to get the ARULL
B28: Prem/Ops | C28: 1.00 | D28: 1.05 | E28: 1.14 | F28: 1.20 | G28: 1.32 | H28: 1.62
B29: Products | C29: 1.00 | D29: 1.24 | E29: 1.51 | F29: 1.59 | G29: 2.03 | H29: 2.39 | K29: Now cap the basic limit indemnity losses, then add the ALAE and cap at
B30: Table 13.B | K30: the maximum single loss. The basic cap is $100,000 per the manual.
C32: Occurrence | D32: Claims-Made Year in Program (YIP) | L32: Cap at | M32: Add | N32: Cap at
B33: Subline | C33: Policy | D33: Mature | E33: Fourth | F33: Third | G33: Second | H33: First | K33: Claim # | L33: Basic Limit | M33: ALAE | N33: MSL
B34: Prem/Ops | C34: 1.00 | D34: 0.94 | E34: 0.84 | F34: 0.78 | G34: 0.67 | H34: 0.47 | K34: 1 | L34: NA | M34: NA | N34: NA
B35: Products | C35: 1.00 | D35: 0.72 | E35: 0.49 | F35: 0.43 | G35: 0.35 | H35: 0.22 | K35: 2 | L35: NA | M35: NA | N35: NA
B36: Table 13.C | K36: 3 | L36: =MIN(100000,D9) -> $100,000 | M36: =L36+E9 -> $155,000 | N36: =MIN(M36,$M$24) -> $153,400
K37: 4 | L37: =MIN(100000,D10) -> $55,000 | M37: =L37+E10 -> $60,000 | N37: =MIN(M37,$M$24) -> $60,000
B38: Experience | D38: Factors for | K38: 5 | L38: =MIN(100000,D11) -> $0 | M38: =L38+E11 -> $150,000 | N38: =MIN(M38,$M$24) -> $150,000
B39: Period Year | C39: Subline | D39: Rule 5.B | E39: Rule 5.C | K39: 6 | L39: =MIN(100000,D12) -> $32,000 | M39: =L39+E12 -> $32,800 | N39: =MIN(M39,$M$24) -> $32,800
B40: Latest | C40: Prem/Ops | D40: 0.916 | E40: 0.949
C41: Products | D41: 0.882 | E41: 0.914 | K41: Ratable Loss | N41: =SUM(N36:N39) -> $396,200
B42: 2nd Latest | C42: Prem/Ops | D42: 0.876 | E42: 0.919
C43: Products | D43: 0.828 | E43: 0.869 | K43: AER = (Ratable Loss + Expected Future Development) / CSLC
B44: 3rd Latest | C44: Prem/Ops | D44: 0.839 | E44: 0.887 | K44: =(T17+N41)/Q17 -> 1.85
C45: Products | D45: 0.777 | E45: 0.821
B46: Table 14 | K46: Experience Modification = (AER - EER) / EER * Credibility
K47: Mod = | L47: =(K44-L24)/L24*K24 -> 0.39
B48: CSLC | C48: Credibility | D48: EER | E48: MSL
B49: 194,380 - 203,002 | C49: 0.36 | D49: 0.911 | E49: 147,550 | K49: Experience Modification Factor
B50: 203,003 - 211,901 | C50: 0.37 | D50: 0.914 | E50: 150,450 | K50: =1+L47 -> 1.39
B51: 211,902 - 221,089 | C51: 0.38 | D51: 0.917 | E51: 153,400
B52: 221,090 - 230,581 | C52: 0.39 | D52: 0.920 | E52: 156,450
B53: 230,582 - 240,392 | C53: 0.40 | D53: 0.923 | E53: 159,600
B54: Table 16

Sheet 10
A1: 10 | B1: Finished | F1: Navigator | H1: Solution
G2: a.) | H2: Workers' Compensation losses are generally frequency driven (Med Only claims) with the occasional low frequency, high severity loss.
A3: Points | B3: Answer the following in the context of the NCCI experience rating formula. | H3: Splitting into primary and excess components allows the plan to respond to both frequency and severity.
A4: =INDEX('Point Grid'!B:B,MATCH('10'!A1,'Point Grid'!A:A,0)) -> 1.75 | H4: This improves the accuracy of the expected losses.
A6: (a) | B6: Explain why splitting the formula into primary and excess components is | G6: b.) | H6: The primary component is designed to respond to the insured's loss frequency.
A7: =INDEX('Point Grid'!$C$8:$I$28,MATCH($A$1,'Point Grid'!$A$8:$A$28,0),MATCH(A6,'Point Grid'!$C$7:$I$7,0)) -> 0.5 | B7: preferable for Workers' Compensation risks.
A8: 0.5 | G8: c.) | H8: The excess component is capped to limit the impact of high severity claims. The assumption is these
H9: claims are not reflective of future loss experience.
A10: (b) | B10: Briefly describe the function of the primary component of the formula.
A11: =INDEX('Point Grid'!$C$8:$I$28,MATCH($A$1,'Point Grid'!$A$8:$A$28,0),MATCH(A10,'Point Grid'!$C$7:$I$7,0)) -> 0.25 | G11: d.) | H11: A goal of experience rating is Individual risk equity which means charging each insured for their true loss potential.
A12: 0.25 | H12: Giving full credibility to loss experience conflicts with the goal of individual risk equity because it penalizes
H13: an insured for having random losses that aren't reflective of their true long-term loss experience.
A14: (c) | B14: Briefly describe why the excess component is capped.
A15: =INDEX('Point Grid'!$C$8:$I$28,MATCH($A$1,'Point Grid'!$A$8:$A$28,0),MATCH(A14,'Point Grid'!$C$7:$I$7,0)) -> 0.25
A16: 0.25
A18: (d) | B18: Discuss how using full credibility conflicts with one goal of experience rating.
A19: =INDEX('Point Grid'!$C$8:$I$28,MATCH($A$1,'Point Grid'!$A$8:$A$28,0),MATCH(A18,'Point Grid'!$C$7:$I$7,0)) -> 0.75
A20: 0.75

Sheet 11
A1: 11 | B1: Finished | G1: Navigator | I1: Solution
H2: a.) | I2: Since this occurred five years ago it is fully reflected within the experience period so it is
A3: Points | I3: not appropriate for schedule rating.
A4: =INDEX('Point Grid'!B:B,MATCH('11'!A1,'Point Grid'!A:A,0)) -> 2.75 | B4: ABC Incorporated is a theme park operator who is purchasing a Commercial General Liability | I4: 0% debit/credit out of a maximum of 0%.
B5: policy with an effective date of January 1, 2022. Assume ABC Incorporated is eligible for both
B6: experience and schedule rating, and each scenario listed below is independent. | H6: b.) | I6: Adding a doctor at each location and training staff in emergency first aid should reduce the
I7: severity of claims. A schedule credit is merited because this is not reflected at all in the
B8: For each scenario identify whether a debit or credit should apply to the schedule rating, | I8: experience period.
B9: suggest an appropriate figure and state the maximum possible debit or credit that could | I9: Recommend: 2% credit (cooperation - safety program and medical facilities)
B10: be applied. | I10: Maximum: 2% credit
A12: (a) | B12: In 2017, ABC Incorporated implemented a mandatory one-month training program for all
A13: =INDEX('Point Grid'!$C$8:$I$28,MATCH($A$1,'Point Grid'!$A$8:$A$28,0),MATCH(A12,'Point Grid'!$C$7:$I$7,0)) -> 0.5 | B13: new hires that teaches equipment maintenance, safety programs, and first aid. | H13: c.) | I13: Adding inexperienced hires that aren't reflected in the experience period merits a
A14: 0.5 | I14: schedule debit. The magnitude depends on how many staff are new out of the total.
I15: Assuming less than half the staff are new
A16: (b) | B16: In 2021, ABC Incorporated added a full-time, on-site doctor in each of its locations and trained | I16: Recommend: 3% debit modification (Employees - selection, training, supervision, experience)
A17: =INDEX('Point Grid'!$C$8:$I$28,MATCH($A$1,'Point Grid'!$A$8:$A$28,0),MATCH(A16,'Point Grid'!$C$7:$I$7,0)) -> 0.5 | B17: all employees in emergency first aid. | I17: Maximum: 6% debit
A18: 0.5
H19: d.) | I19: Replacing older equipment should improve safety so merits a credit.
A20: (c) | B20: Due to an increase in visitors in 2021, ABC Incorporated reduced ride downtimes and hired | I20: The older equipment is present in the experience period and assuming it's replaced by Q1 2022
A21: =INDEX('Point Grid'!$C$8:$I$28,MATCH($A$1,'Point Grid'!$A$8:$A$28,0),MATCH(A20,'Point Grid'!$C$7:$I$7,0)) -> 0.5 | B21: inexperienced employees to staff its locations. ABC Incorpated usually only hires employees | I21: the policy period will only use the newer equipment.
A22: 0.5 | B22: with at least three years of experience. | I22: Recommend: 8% credit (Equipment - type, care & condition)
I23: Maximum: 10% credit
A24: (d) | B24: ABC Incorporated began replacing all equipment over 5-years old in each of its locations
A25: =INDEX('Point Grid'!$C$8:$I$28,MATCH($A$1,'Point Grid'!$A$8:$A$28,0),MATCH(A24,'Point Grid'!$C$7:$I$7,0)) -> 0.5 | B25: in the second quarter of 2021. The upgrades will be completed by Q1 2022. | H25: e.) | I25: Increasing the capacity without making changes reduces the safety margin which increases risk.
A26: 0.5 | I26: This changes the exposure for the locations.
I27: Recommend: 5% debit (Location - exposure inside and out. No changes to outside)
A28: (e) | B28: In order to accommodate more visitors in 2022, ABC Incorporated has increased the maximum | I28: Maximum: 5% debit inside, 5% debit outside
A29: =INDEX('Point Grid'!$C$8:$I$28,MATCH($A$1,'Point Grid'!$A$8:$A$28,0),MATCH(A28,'Point Grid'!$C$7:$I$7,0)) -> 0.75 | B29: capacity of its indoor rides across all locations without making any physical changes.
A30: 0.75 | B30: No changes are made to outdoor rides.

Sheet 12
A1: 12 | B1: Finished | G1: Navigator | I1: Solution
H2: a.) | I2: Credibility must be between 0 and 1.
A3: Points | I3: Credibility increases as the exposure increases.
A4: =INDEX('Point Grid'!B:B,MATCH('12'!A1,'Point Grid'!A:A,0)) -> 3 | I4: Credibility increases at a decreasing rate.
A6: (a) | B6: Using words, identify the three criteria that define an effective credibility function | H6: b.) | I6: 0 <= Z <= 1 where Z is the assigned credibility.
A7: =INDEX('Point Grid'!$C$8:$I$28,MATCH($A$1,'Point Grid'!$A$8:$A$28,0),MATCH(A6,'Point Grid'!$C$7:$I$7,0)) -> 1 | B7: for experience rating. | I7: dZ/dE >= 0 where E is the exposure.
A8: 1 | I8: d/dE (Z/E) <= 0
A10: (b) | B10: Using equations, describe the three criteria from part (a), making sure to | H10: c.) | I10: Criterion 1 is met as all credibilities are between 0% and 100%.
A11: =INDEX('Point Grid'!$C$8:$I$28,MATCH($A$1,'Point Grid'!$A$8:$A$28,0),MATCH(A10,'Point Grid'!$C$7:$I$7,0)) -> 1 | B11: define all notation used. | I11: Criterion 2 is met because the credibilities increase as the exposure (expected losses) increases.
A12: 1 | I12: Criterion 3 is not met because
I13: Exposure, E | J13: Credibility, Z | K13: Z/E | L13: Rate of Change
A14: (c) | B14: For each of the three criteria, briefly explain whether or not the following credibility function | I14: 5,000 | J14: =D17 -> 0% | K14: =J14/I14 -> 0.0000000
A15: =INDEX('Point Grid'!$C$8:$I$28,MATCH($A$1,'Point Grid'!$A$8:$A$28,0),MATCH(A14,'Point Grid'!$C$7:$I$7,0)) -> 1 | B15: satisfies the criterion. | I15: 5,001 | J15: =D18 -> 35% | K15: =J15/I15 -> 0.0000700 | L15: =(K15-K14)/(I15-I14) -> 0.00007 | M15: > 0
A16: 1 | C16: Expected Losses Between | D16: Credibility
C17: $0 to $5,000 | D17: 0%
C18: $5,001 to $10,000 | D18: 35%
C19: $10,001 to $25,000 | D19: 80%
C20: $25,001 or more | D20: 100%

Sheet 13
A1: 13 | B1: Finished | G1: Navigator | I1: Solution
H2: a.) | I2: Since this is a balanced retrospective rating plan we have
A3: Points | B3: The following information applies to a balanced retrospectively rated policy: | I3: Guaranteed Cost Premium = (e + E)*T where
A4: =INDEX('Point Grid'!B:B,MATCH('13'!A1,'Point Grid'!A:A,0)) -> 2 | I4: e is the expense figure, E is the loss figure and T is the tax multiplier.
B5: $26,000 | C5: Standard Premium | I5: Solving for T yields
B6: $24,000 | C6: Guaranteed Cost Premium | I6: T = | J6: =B6/B7 -> 1.2
B7: $20,000 | C7: Provision for Losses and Expenses excluding Taxes
B8: $15,000 | C8: Expected Losses | H8: b.) | I8: The Balance Equations are:
B9: 1.15 | C9: Loss Conversion Factor | I9: phi(rH) - phi(rG) = ( (e+E[A])*T - H) / (c*E[A]*T)
B10: 0.06 | C10: Charge for Maximum | I10: rG - rH = (G - H) / (c*E[A]*T)
B11: 0.57 | C11: Savings for Maximum
B12: 0.685 | C12: Charge for Minimum | I12: We want to calculate H/SP where SP is the standard premium and H is the minimum premium.
B13: 0.019 | C13: Savings for Minimum | I13: Solve the first balance equation for H
I14: H = | J14: =B6-(B12-B10)*(B9*B8*J6) -> $11,062.50
A15: (a) | B15: Determine the tax multiplier. | I15: H/SP = | J15: =J14/B5 -> 0.42548
A16: =INDEX('Point Grid'!$C$8:$I$28,MATCH($A$1,'Point Grid'!$A$8:$A$28,0),MATCH(A15,'Point Grid'!$C$7:$I$7,0)) -> 0.5
A17: 0.5 | H17: c.) | I17: The converted insurance charge is given by c*(phi(rG) - psi(rH))
I18: c*I = | J18: =B9*(B10-B13) -> 0.04715
A19: (b) | B19: Determine the minimum premium ratio as a percentage of standard premium. | I19: So the converted insurance charge in dollars is c*I * expected losses
A20: =INDEX('Point Grid'!$C$8:$I$28,MATCH($A$1,'Point Grid'!$A$8:$A$28,0),MATCH(A19,'Point Grid'!$C$7:$I$7,0)) -> 0.5 | I20: =J18*B8 -> $707.25
A21: 0.5
H22: d.) | I22: At minimum premium the entry ratio is rH = LH / E[A]
A23: (c) | B23: Calculate the converted insurance charge in dollars. | I23: Use psi(rH) = phi(rH) + rH - 1 to solve for rH
A24: =INDEX('Point Grid'!$C$8:$I$28,MATCH($A$1,'Point Grid'!$A$8:$A$28,0),MATCH(A23,'Point Grid'!$C$7:$I$7,0)) -> 0.5 | I24: rH = | J24: =B13-B12+1 -> 0.334
A25: 0.5 | I25: LH = | J25: =J24*B8 -> $5,010
I26: ELRH = LH / SP = | K26: =J25/B5 -> 19.3%
A27: (d) | B27: Determine the loss ratio at minimum.
A28: =INDEX('Point Grid'!$C$8:$I$28,MATCH($A$1,'Point Grid'!$A$8:$A$28,0),MATCH(A27,'Point Grid'!$C$7:$I$7,0)) -> 0.5
A29: 0.5

Sheet 14
A1: 14 | B1: Finished | E1: Navigator | G1: Solution
F2: a.) | G2: Expected Ground Up Loss
A3: Points | B3: Using the information below, calculate the premium for a $50,000 deductible policy. | G3: =B6*B5 -> $204,230
A4: =INDEX('Point Grid'!B:B,MATCH('14'!A1,'Point Grid'!A:A,0)) -> 2
B5: $314,200 | C5: Standard Premium | G5: Expected Excess Loss
A6: (a) | B6: 65% | C6: Expected Loss ratio | G6: =G3*(1-B11) -> $138,876
A7: =INDEX('Point Grid'!$C$8:$I$28,MATCH($A$1,'Point Grid'!$A$8:$A$28,0),MATCH(A6,'Point Grid'!$C$7:$I$7,0)) -> 2 | B7: 10% | C7: ALAE as a percentage of loss
A8: 2 | B8: 18% | C8: Commission as a percentage of premium | G8: Expected ALAE (remember ALAE is paid on all claims whether excess or not)
B9: 8% | C9: Other variable expenses | G9: =B5*B6*B7 -> $20,423
B10: $22,000 | C10: Fixed expenses
B11: 0.32 | C11: Loss Elimination Ratio at a $50,000 deductible | G11: Premium = (Expected loss & ALAE + fixed expenses) / ( 1 - commission - variable expenses)
G12: =(G6+G9+B10)/(1-B8-B9) -> $243,354.90

Sheet 15
A1: 15 | B1: Finished | G1: Navigator | I1: Solution
H2: a.) | I2: Since we're not given the expected loss and ALAE for the book of business we must estimate it
A3: Points | B3: An insurer writes five identical workers compensation risks for one year and observes | I3: E[A] = | J3: =AVERAGE(C18:D22) -> $1,000,000
A4: =INDEX('Point Grid'!B:B,MATCH('15'!A1,'Point Grid'!A:A,0)) -> 4 | B4: the following:
I5: Compute the Table M entry ratio for each risk
B6: $1,250,000 | C6: Standard Premium for each risk | I6: Risk # | J6: Entry Ratio
B7: 6% | C7: General Overhead Expense as a Percent of Standard Premium | I7: 1 | J7: =C18/$J$3 -> 0.40
B8: 4.50% | C8: Credit Risk Charge as a Percent of Standard Premium | I8: 2 | J8: =C19/$J$3 -> 0.80
B9: 11% | C9: Expected ULAE as a Percent of Loss and ALAE | I9: 3 | J9: 1.00
B10: 4% | C10: Loss Based Assessment as a Percent of Loss and ALAE | I10: 4 | J10: 1.20
B11: 10% | C11: Excess Ratio for a $250,000 Deductible (% of Loss and ALAE) | I11: 5 | J11: 1.60
B12: 8% | C12: Acquisition Expenses as a Percent of Standard Premium
B13: 3% | C13: Premium Tax as a Percent of Standard Premium | I13: Since we want a Table M at certain intervals, use the horizontal slicing approach.
B14: 5% | C14: Profit Load as a Percent of Net Premium | I14: Entry Ratio | J14: # Risks | K14: # Risks Above | L14: % Risks Above | M14: φ(r) | N14: ψ(r)
I15: 0 | J15: =COUNTIF($J$7:$J$11,I15) -> 0 | K15: =COUNTIF($J$7:$J$11,">"&I15) -> 5 | L15: =K15/5 -> 100.0% | M15: =M16+L15*(I16-I15) -> 1 | N15: =M15+I15-1 -> 0
B16: Actual losses for each risk are as follows: | I16: =I15+0.2 -> 0.2 | J16: =COUNTIF($J$7:$J$11,I16) -> 0 | K16: =COUNTIF($J$7:$J$11,">"&I16) -> 5 | L16: =K16/5 -> 100.0% | M16: 0.8 | N16: =M16+I16-1 -> 0
B17: Risk # | C17: Actual Loss & ALAE | I17: =I16+0.2 -> 0.4 | J17: 1 | K17: 4 | L17: 80.0% | M17: 0.6 | N17: 0
B18: 1 | C18: $400,000 | I18: 0.6 | J18: 0 | K18: 4 | L18: 80.0% | M18: 0.44 | N18: 0.04
B19: 2 | C19: $800,000 | I19: 0.8 | J19: 1 | K19: 3 | L19: 60.0% | M19: 0.28 | N19: 0.08
B20: 3 | C20: $1,000,000 | I20: 1 | J20: 1 | K20: 2 | L20: 40.0% | M20: 0.16 | N20: 0.16
B21: 4 | C21: $1,200,000 | I21: 1.2 | J21: 1 | K21: 1 | L21: 20.0% | M21: 0.08 | N21: 0.28
B22: 5 | C22: $1,600,000 | I22: 1.4 | J22: 0 | K22: 1 | L22: 20.0% | M22: =M23+L22*(I23-I22) -> 0.04 | N22: 0.44
I23: =I22+0.2 -> 1.6 | J23: 1 | K23: 0 | L23: 0.0% | M23: 0 | N23: 0.6
A24: (a) | B24: Construct a Table M for this book of business by displaying the insurance charges and savings
A25: =INDEX('Point Grid'!$C$8:$I$28,MATCH($A$1,'Point Grid'!$A$8:$A$28,0),MATCH(A24,'Point Grid'!$C$7:$I$7,0)) -> 2 | B25: for entry ratios from 0.00 to 1.60 in increments of 0.20. | H25: b.) | I25: An LDD policy pays all claims and seeks reimbursement for deductible losses.
A26: 2
I27: =J3*B11 -> $100,000 | J27: Expected loss excess of the per-occurrence deductible
A28: (b) | B28: For any risk above, estimate the prospective premium for a large dollar deductible (LDD) policy with | I28: =J3-I27 -> $900,000 | J28: Expected Limited Loss (deductible loss)
A29: =INDEX('Point Grid'!$C$8:$I$28,MATCH($A$1,'Point Grid'!$A$8:$A$28,0),MATCH(A28,'Point Grid'!$C$7:$I$7,0)) -> 2 | B29: a per-occurrence deductible of $250,000 and an annual aggregate deductible of $1,260,000. | I29: =B7*B6 -> $75,000 | J29: General Expenses
A30: 2 | I30: =B8*B6 -> $56,250 | J30: Credit Risk Charge
I31: =B9*J3 -> $110,000 | J31: ULAE, paid on all losses
I32: =B10*J3 -> $40,000 | J32: Loss based assessment charge
I33: =B12*B6 -> $100,000 | J33: Acquisition expenses
I34: =B13*B6 -> $37,500 | J34: Premium Tax
I36: We need to determine the charge resulting from introducing the aggregate deductible
I37: To do this we really need a Limited Table M but we only have a Table M.
I38: We assume its okay to apply the Table M in place of the Limited Table M. This is
I39: equivalent to performing the ICRLL process with the adjustment landing in the same
I40: expected loss group.
I41: Limited Entry Ratio = aggregate limit / expected limited loss
I42: =1260000/I28 -> 1.40
I44: Insurance charge = phi(1.40)*expected limited loss
I45: =M22*I28 -> $36,000
I47: LDD Premium = (Excess of Per-occurrence + insurance charge + expenses + ULAE +
J48: credit charge + loss based charge + acquisition expenses + taxes) / (1 - Profit Provision)
I50: =(I27+SUM(I29:I34)+I45)/(1-B14) -> $583,947

Sheet 16
A1: 16 | B1: Finished | G1: Navigator | I1: Solution
H2: a.) | I2: E[A] = | J2: =AVERAGE(0,1000000) -> $500,000
A3: Points | B3: The following information applies to a company's retrospectively rated Workers' | I3: Expected retrospective premium is given by R = (B + c*E[L])*T
A4: =INDEX('Point Grid'!B:B,MATCH('16'!A1,'Point Grid'!A:A,0)) -> 4 | B4: Compensation policy: | I4: E[L] = E[A] - I, where I is the net insurance charge.
B5: • Its losses are expected to be uniformly distributed on [0, 1,000,000]. | I5: Tax multiplier = | K5: =1/(1-B11) -> 1.05
B7: $750,000 | C7: Losses at maximum premium | I7: Drawing a Lee diagram may help with this question.
B8: $225,000 | C8: Losses at minimum premium | I8: Probability of a loss over $750,000 = | M8: =1-B7/10^6 -> 0.25
B9: 1.15 | C9: Loss conversion factor | I9: Expected excess loss over $750,000 = | M9: =AVERAGE(B7,10^6)-B7 -> $125,000
B10: $130,000 | C10: Basic Premium | I10: Insurance Charge = | M10: =M8*M9 -> $31,250
B11: 5% | C11: Tax Rate
I12: Probability of a loss under $225,000 = | M12: =B8/10^6 -> 0.23
A13: (a) | B13: Calculate the expected retrospective premium for this Workers' Compensation policy. | I13: Expected loss under $225,000 = | M13: =AVERAGE(0,B8) -> $112,500
A14: =INDEX('Point Grid'!$C$8:$I$28,MATCH($A$1,'Point Grid'!$A$8:$A$28,0),MATCH(A13,'Point Grid'!$C$7:$I$7,0)) -> 2 | I14: Insurance Savings = | M14: =M12*M13 -> $25,313
A15: 2
I16: Net insurance charge = | M16: =M10-M14 -> $5,938
A17: (b) | B17: The company is considering whether to implement a fraud detection device.
A18: =INDEX('Point Grid'!$C$8:$I$28,MATCH($A$1,'Point Grid'!$A$8:$A$28,0),MATCH(A17,'Point Grid'!$C$7:$I$7,0)) -> 2 | B18: This addition would result in a shift in the loss distribution to a uniform distribution | I18: E[L] = | J18: =J2-M16 -> $494,063
A19: 2 | B19: between [0, 800,000].
B20: Assuming no other plan parameters change, calculate the resulting premium savings. | I20: Retro Premium, R = | K20: =(B10+B9*J18)*K5 -> $734,918
H22: b.) | I22: Now assume the loss distribution is uniform on [0, 800,000]
I23: E[A] = | J23: =AVERAGE(0,800000) -> $400,000
I25: Probability of a loss over $750,000 = | M25: =1-B7/800000 -> 0.063
I26: Expected excess loss over $750,000 = | M26: =AVERAGE(B7,800000)-B7 -> $25,000
I27: Insurance Charge = | M27: =M25*M26 -> $1,563
I29: Probability of a loss under $225,000 = | M29: =B8/800000 -> 0.281
I30: Expected loss under $225,000 = | M30: =AVERAGE(0,B8) -> $112,500
I31: Insurance Savings = | M31: =M29*M30 -> $31,641
I33: Net insurance charge = | M33: =M27-M31 -> ($30,078)
I35: E[L] = | J35: =J23-M33 -> $430,078
I37: Retro Premium, R = | K37: =(B10+B9*J35)*K5 -> $657,463
I39: Premium Savings
I40: =K20-K37 -> $77,454.77

Sheet 17
A1: 17 | B1: Finished | G1: Navigator | I1: Solution
H2: a.) | I2: The ISO approach to risk loading ILFs is
A3: Points | B3: Given the following information about an insurer's book of business:
A4: =INDEX('Point Grid'!B:B,MATCH('17'!A1,'Point Grid'!A:A,0)) -> 1.5 | I4: The general formula for (risk-loaded) ILFs is:
B5: $10,000 | C5: Basic limit | E5: Claim Size | F5: Probability
B6: $250,000 | C6: Policy limit | E6: $250 | F6: 0.1768
B7: $500 | C7: Average ALAE | E7: $2,500 | F7: 0.5709
B8: 2.0% | C8: ULAE | E8: $15,000 | F8: 0.1565 | I8: Claim Size | J8: Cap @ Basic | K8: Cap @ Policy | L8: (X; b)2 | M8: (X; L)2
B9: 4.0 | C9: Expected Claim Count | E9: $75,000 | F9: 0.0958 | I9: =E6 -> $250 | J9: =MIN(I9,$B$5) -> $250 | K9: =MIN(I9,$B$6) -> $250 | L9: =J9^2 -> $62,500 | M9: $62,500
B10: 15.0% | C10: ISO k-value | I10: =E7 -> $2,500 | J10: =MIN(I10,$B$5) -> $2,500 | K10: =MIN(I10,$B$6) -> $2,500 | L10: $6,250,000 | M10: $6,250,000
I11: $15,000 | J11: $10,000 | K11: =MIN(I11,$B$6) -> $15,000 | L11: $100,000,000 | M11: $225,000,000
B12: • Claim counts are assumed to follow a Poisson distribution. | I12: $75,000 | J12: $10,000 | K12: =MIN(I12,$B$6) -> $75,000 | L12: $100,000,000 | M12: $5,625,000,000
B13: • The insurer follows the ISO approach to load their ILFs for risk.
I14: Expectations | J14: =SUMPRODUCT(J9:J12,F6:F9) -> $3,994 | K14: =SUMPRODUCT(K9:K12,F6:F9) -> $11,004
A15: (a) | B15: Calculate the ILF at the policy limit with and without including the risk load.
A16: =INDEX('Point Grid'!$C$8:$I$28,MATCH($A$1,'Point Grid'!$A$8:$A$28,0),MATCH(A15,'Point Grid'!$C$7:$I$7,0)) -> 1.5 | I16: Without Risk Loading
A17: 1.5 | I17: ILF = | J17: =((K14+B7)*(1+B8))/((J14+B7)*(1+B8)) -> 2.560
I19: With Risk Loading
I20: Since the claim count distribution is Poisson, we have δ = 0.
I22: E[X2; b] = | J22: =SUMPRODUCT(L9:L12,F6:F9) -> $28,809,175
I23: E[X2; L] = | J23: =SUMPRODUCT(F6:F9,M9:M12) -> $577,666,675
I25: τ(b) = | J25: =B10/SQRT(B9)*SQRT(J22) -> $402.56
I26: τ(L) = | J26: =B10/SQRT(B9)*SQRT(J23) -> $1,802.60
I28: ILF = | J28: =((K14+B7)*(1+B8)+J26)/((J14+B7)*(1+B8)+J25) -> 2.714

Sheet 18
A1: 18 | B1: Finished | G1: Navigator | J1: Solution
I2: a.)
A3: Points | B3: An insured is subject to experience rating under the National Council on Compensation Insurance
A4: =INDEX('Point Grid'!B:B,MATCH('18'!A1,'Point Grid'!A:A,0)) -> 3 | B4: (NCCI) Experience Rating Plan Manual for Workers Compensation and Employers Liability Insurance.
J5: Use the class code to look up the associated ELR and D-ratio.
B6: The following information about the insured is given: | J6: ELR | K6: D-ratio
B7: $4,000,000 | C7: Payroll for the experience period | J7: =C30 -> 1.17 | K7: =D30 -> 0.20
B8: AL | C8: State
B9: 4279 | C9: Class | J9: =B7/100 -> $40,000 | K9: Payroll in (100)s
B10: $5,000 | C10: Primary/Excess split point
B11: $167,000 | C11: State per Claim Accident Limitation | J11: Expected Loss, E = | L11: =J9*J7 -> $46,800
B12: $334,000 | C12: State Multiple Claim Accident Limitation
B13: 6.70 | C13: G value | J13: The expected primary loss is Ep = E * D-Ratio = | N13: =K7*L11 -> $9,360
B15: The following claims apply to the experience period. | J15: The expected excess loss is Ee = E - Ep = | N15: =L11-N13 -> $37,440
B16: Excluding Medical Only Losses | E16: Medical Only Losses
B17: Claim # | C17: Indemnity | E17: Claim # | F17: Indemnity | J17: Use the expected loss, E, to look up the associated ballast and weight values.
B18: 1 | C18: $2,000 | E18: 7 | F18: $500 | J18: Ballast B = | K18: =F34 -> 20,100
B19: 2 | C19: $2,500 | E19: 8 | F19: $1,750 | J19: Weight W = | K19: =C33 -> 0.10
B20: 3 | C20: $4,000 | E20: 9 | F20: $3,000
B21: 4 | C21: $5,000 | E21: 10 | F21: $25,000 | J21: Use the claims information to compute the actual primary and actual excess experience.
B22: 5 | C22: $25,000
B23: 6* | C23: $350,000 | J23: First apply the state multiple claim limit.
B24: * Only one person was injured in claim 6. | J24: This only has the potential to impact claim 6. However, we're told claim 6 has a single claimant so it isn't impacted.
J25: Now apply the state per claim limit.
B26: You may use the following tables to answer the question below.
B27: Class Code | C27: ELR | D27: D Ratio | J27: Claim # | K27: Cap at single | L27: Primary | M27: Excess
B28: 4263 | C28: 1.01 | D28: 0.22 | J28: =B18 -> 1 | K28: =MIN(C18,$B$11) -> $2,000 | L28: =MIN(K28,$B$10) -> $2,000 | M28: =K28-L28 -> $0
B29: 4273 | C29: 0.94 | D29: 0.21 | J29: 2 | K29: $2,500 | L29: =MIN(K29,$B$10) -> $2,500 | M29: =K29-L29 -> $0
B30: 4279 | C30: 1.17 | D30: 0.20 | J30: 3 | K30: $4,000 | L30: $4,000 | M30: $0
J31: 4 | K31: $5,000 | L31: $5,000 | M31: $0
B32: Expected Losses | C32: Weighting Value | E32: Expected Losses | F32: Ballast Value | J32: 5 | K32: $25,000 | L32: $5,000 | M32: $20,000
B33: 31,844 to 47,399 | C33: 0.10 | E33: 0 to 36,038 | F33: 16,750 | J33: 6* | K33: $167,000 | L33: $5,000 | M33: $162,000
B34: 47,400 to 61,236 | C34: 0.11 | E34: 36,039 to 62,025 | F34: 20,100 | J34: =E18 -> 7 | K34: =MIN(F18*(1-70%),$B$11) -> $150 | L34: =MIN(K34,(1-70%)*$B$10) -> $150 | M34: =K34-L34 -> $0
B35: 61,237 to 74,710 | C35: 0.12 | E35: 62,026 to 91,884 | F35: 23,450 | J35: =E19 -> 8 | K35: =MIN(F19*(1-70%),$B$11) -> $525 | L35: =MIN(K35,(1-70%)*$B$10) -> $525 | M35: =K35-L35 -> $0
J36: 9 | K36: =MIN(F20*(1-70%),$B$11) -> $900 | L36: $900 | M36: $0
A37: (a) | B37: Calculate the experience modification for this insured. | J37: 10 | K37: =MIN(F21*(1-70%),$B$11) -> $7,500 | L37: $1,500 | M37: $6,000
A38: =INDEX('Point Grid'!$C$8:$I$28,MATCH($A$1,'Point Grid'!$A$8:$A$28,0),MATCH(A37,'Point Grid'!$C$7:$I$7,0)) -> 2.5
A39: 2.5
J40: Ap = | K40: =SUM(L28:L37) -> $26,575
A41: (b) | B41: Select all true statements below: | J41: Ae = | K41: =SUM(M28:M37) -> $188,000
A42: =INDEX('Point Grid'!$C$8:$I$28,MATCH($A$1,'Point Grid'!$A$8:$A$28,0),MATCH(A41,'Point Grid'!$C$7:$I$7,0)) -> 0.5
A43: 0.5 | B43: i.) The state per-accident and multiple claim accident limits do not apply to disease losses. | J43: Maximum allowed experience mod = 1.10 + (0.0004 * Expected Losses / G) = | Q43: =1.1+0.0004*L11/B13 -> 3.89
B44: ii.) Policy level disease losses are capped at 3*(State per-claim accident limit) + 120% Expected Loss.
B45: iii.) Primary disease losses are capped at 2x the primary/excess split point. | J45: Experience mod = | L45: =ROUND(MIN(Q43,(K40+(1-K19)*N15+K18+K19*K41)/(N13+(1-K19)*N15+K18+K19*N15)),2) -> 1.480
B46: iv.) Primary disease losses are capped at 2x primary/excess split point + 40% Expected Primary Loss.
B47: v.) Disease losses do not include losses due to occupational exposures such as exposure to asbestos. | I47: b.) | J47: i.) FALSE – the state per-accident and multiple claim accident limits should be applied first.
J48: ii.) TRUE – after applying the state per- and multiple claim accident limits, disease losses are capped at the policy level by
J49: 3*(State per-claim accident limit) + 120% Expected Loss.
J50: iii.) FALSE – primary disease losses are capped at 2x primary/excess split point + 40% Expected Primary Loss.
J51: iv.) TRUE
J52: v.) FALSE – disease losses include those due to occupational exposures such as asbestos.

Sheet 19
A1: 19 | B1: Finished | I1: Navigator | K1: Solution
J2: a.) | K2: Loss elimination ratio = C(d) =
A3: Points
A4: =INDEX('Point Grid'!B:B,MATCH('19'!A1,'Point Grid'!A:A,0)) -> 2.5 | B4: Given the following information about an insurer's book of business which | K4: Modified Frequency = φ(1- FX(d))
B5: utilizes straight deductibles:
K6: Modified Severity =
B7: 0.0003 | C7: Ground-up claim frequency
B8: 100,000 | C8: Basic policy limit
B9: 12,310 | C9: Basic limit expected loss | M9: Modified
B10: 150 | C10: ALAE | K10: Deductible | L10: C(d) | M10: Frequency | N10: Severity | O10: Pure Premium
B11: 12.0% | C11: ULAE | K11: 0 | L11: =(C18+D18*$B$10)/($B$9+$B$10) -> 0.0000 | M11: =$B$7*(1-D18) -> 0.000300 | N11: =(($B$9-C18)+(1-D18)*$B$10)/(1-D18)*(1+$B$11) -> $13,955 | O11: =M11*N11 -> $4.19
K12: 1,000 | L12: 0.0587 | M12: 0.000155 | N12: $25,491 | O12: =M12*N12 -> $3.94
B13: $250,000 | C13: Policy limit | K13: 2,000 | L13: 0.0964 | M13: 0.000120 | N13: $31,439 | O13: $3.78
B14: $1,000 | C14: Policy Deductible | K14: 3,000 | L14: 0.1266 | M14: 0.000101 | N14: $36,114 | O14: $3.66
B15: $4,684 | C15: Policy Premium | K15: 5,000 | L15: 0.1751 | M15: 0.000079 | N15: $43,672 | O15: $3.45
K16: 10,000 | L16: 0.2622 | M16: 0.000054 | N16: $57,680 | O16: $3.09
B17: Deductible | C17: E[X; d] | D17: FX(d) | F17: Limit | G17: ILF
B18: 0 | C18: 0 | D18: 0 | F18: 100,000 | G18: 0.667 | J18: b.) | K18: Premium = Pb*(I(L) - C(d))
B19: 1,000 | C19: 659 | D19: 0.4847 | F19: 250,000 | G19: 1.000
B20: 2,000 | C20: 1,111 | D20: 0.5989 | F20: 500,000 | G20: 1.167 | K20: To use this formula the ILFs must be rebased at the basic limit ($100,000).
B21: 3,000 | C21: 1,478 | D21: 0.6625 | F21: 1,000,000 | G21: 1.267 | K21: Limit | L21: ILF
B22: 5,000 | C22: 2,071 | D22: 0.7364 | K22: 100,000 | L22: =G18/$G$18 -> 1.000
B23: 10,000 | C23: 3,144 | D23: 0.8215 | K23: 250,000 | L23: =G19/$G$18 -> 1.500
K24: 500,000 | L24: =G20/$G$18 -> 1.750
A25: (a) | B25: Calculate the loss elimination ratio, modified frequency, severity and pure premium | K25: 1,000,000 | L25: =G21/$G$18 -> 1.900
A26: =INDEX('Point Grid'!$C$8:$I$28,MATCH($A$1,'Point Grid'!$A$8:$A$28,0),MATCH(A25,'Point Grid'!$C$7:$I$7,0)) -> 1.5 | B26: for each deductible in the table above.
A27: 1.5 | K27: Basic Premium = | M27: =B15/(L23-L12) -> $3,250.00
A29: (b) | B29: Calculate the premium for a policy with a $1,000,000 limit and $2,000 deductible. | K29: New Policy Premium = | M29: =M27*(L25-L13) -> $5,861.79
A30: =INDEX('Point Grid'!$C$8:$I$28,MATCH($A$1,'Point Grid'!$A$8:$A$28,0),MATCH(A29,'Point Grid'!$C$7:$I$7,0)) -> 1
A31: 1

Sheet 20
A1: 20 | B1: Finished | I1: Navigator | L1: Solution
K2: a.) | N2: Modified | O2: Excess | P2: Expected | Q2: Policy
A3: Points | B3: Given the following information about a retrospectively rated Workers' Compensation policy which is | M3: Hazard | N3: Expected | O3: Ratio at | P3: Excess | Q3: Excess
A4: =INDEX('Point Grid'!B:B,MATCH('20'!A1,'Point Grid'!A:A,0)) -> 2.5 | B4: also subject to experience rating. | L4: State | M4: Group | N4: Loss | O4: Loss Limit | P4: Loss | Q4: Ratio
L5: X | M5: A | N5: =$B$6*D11*$B$7 -> 43,890 | O5: =E11 -> 0.72 | P5: =N5*O5 -> 31,601
B6: 0.95 | C6: Experience Modification Factor | H6: Table of Policy Excess Ratio Ranges | L6: Y | M6: B | N6: =$B$6*D12*$B$7 -> 75,240 | O6: =E12 -> 0.05 | P6: =N6*O6 -> 3,762
B7: 66% | C7: Expected Unlimited Loss Ratio | H7: Sub-table | I7: Excess Ratio Range | L7: Z | M7: C | N7: =$B$6*D13*$B$7 -> 84,645 | O7: =E13 -> 0.59 | P7: 49,941
H8: 7 | I8: 0.146 - 0.181 | L8: Total | N8: =SUM(N5:N7) -> 203,775 | P8: =SUM(P5:P7) -> 85,303 | Q8: =ROUND(P8/N8,3) -> 0.419 | R8: ← policy excess ratio
C9: Hazard | D9: Manual | E9: Excess Ratio | F9: Avg. Cost | H9: 8 | I9: 0.182 - 0.221
B10: State | C10: Group | D10: Premium | E10: at Loss Limit | F10: per Case | H10: 9 | I10: 0.222 - 0.269 | L10: This corresponds to sub-table 12.
B11: X | C11: A | D11: 70,000 | E11: 0.72 | F11: 25,000 | H11: 10 | I11: 0.270 - 0.316
B12: Y | C12: B | D12: 120,000 | E12: 0.05 | F12: 17,000 | H12: 11 | I12: 0.317 - 0.358 | K12: b.) | N12: Modified | P12: Expected
B13: Z | C13: C | D13: 135,000 | E13: 0.59 | F13: 20,000 | H13: 12 | I13: 0.359 - 0.420 | M13: Hazard | N13: Expected | O13: Avg Cost | P13: Number
H14: 13 | I14: 0.421 - 0.484 | L14: State | M14: Group | N14: Loss | O14: per Case | P14: of Claims
L15: X | M15: A | N15: =$B$6*D11*$B$7 -> 43,890 | O15: =F11 -> 25,000 | P15: =N15/O15 -> 1.76
A16: (a) | B16: Calculate the policy excess ratio and associated sub-table to use when rating this policy under the | L16: Y | M16: B | N16: =$B$6*D12*$B$7 -> 75,240 | O16: =F12 -> 17,000 | P16: =N16/O16 -> 4.43
A17: =INDEX('Point Grid'!$C$8:$I$28,MATCH($A$1,'Point Grid'!$A$8:$A$28,0),MATCH(A16,'Point Grid'!$C$7:$I$7,0)) -> 0.5 | B17: NCCI Retrospective rating plan. | L17: Z | M17: C | N17: 84,645 | O17: 20,000 | P17: 4.23
A18: 0.5 | L18: Total | N18: =SUM(N15:N17) -> 203,775 | P18: =ROUND(SUM(P15:P17),1) -> 10.4 | Q18: ← Expected number of claims
A20: (b) | B20: Calculate the total number of expected claims for this policy.
A21: =INDEX('Point Grid'!$C$8:$I$28,MATCH($A$1,'Point Grid'!$A$8:$A$28,0),MATCH(A20,'Point Grid'!$C$7:$I$7,0)) -> 0.5 | K21: c.) | L21: See the inset yellow boxes.
A22: 0.5
K23: d.) | L23: Advantages: Any TWO of:
A24: (c) | B24: Organize the following according to whether or not they are part of the policy's basic premium. | L24: • The table of aggregate loss factors shares the methodology improvements of the ALFs on demand so they are more accurate.
A25: =INDEX('Point Grid'!$C$8:$I$28,MATCH($A$1,'Point Grid'!$A$8:$A$28,0),MATCH(A24,'Point Grid'!$C$7:$I$7,0)) -> 0.75 | L25: • It automatically accounts for claim size inflation over time.
A26: 0.75 | L26: • It removes the need for updates to hazard group differentials and to the expected loss group ranges.
L27: • More recent data is used to generate these tables.
B28: Included in Basic Premium | E28: Not Part of Basic Premium
L29: Disadvantage:
L30: • The table of aggregate loss factors applies countrywide so doesn't reflect state and hazard group severity distribution differences.
A36: (d) | B36: Identify two advantages and one disadvantage of using the table of aggregate loss factors over the
A37: =INDEX('Point Grid'!$C$8:$I$28,MATCH($A$1,'Point Grid'!$A$8:$A$28,0),MATCH(A36,'Point Grid'!$C$7:$I$7,0)) -> 0.75 | B37: previous table of net insurance charges.
A38: 0.75

Sheet 21
A1: 21 | B1: Finished | H1: Navigator | J1: Solution
I2: a.) | J2: Size | K2: F(x) | L2: E[X; x] | M2: e(x) | N2: Fitted
A3: Points | B3: An actuary wishes to fit a claim size distribution to a sample of 1,000 claims. | J3: 100 | K3: =SUM(D6:$D$6)/$D$13 -> 0.099 | L3: =(SUM(E6:$E$6)+SUM(D7:$D$12)*J3)/$D$13 -> 95 | M3: =($K$11-L3)/(1-K3) -> 1,219.64 | N3: =_xlfn.FORECAST.LINEAR(J3,$M$3:$M$8,$J$3:$J$8) -> 1,253.04
A4: =INDEX('Point Grid'!B:B,MATCH('21'!A1,'Point Grid'!A:A,0)) -> 2.25 | J4: 500 | K4: =SUM(D$6:$D7)/$D$13 -> 0.392 | L4: =(SUM(E$6:$E7)+SUM(D8:$D$12)*J4)/$D$13 -> 393 | M4: =($K$11-L4)/(1-K4) -> 1,317.43 | N4: =_xlfn.FORECAST.LINEAR(J4,$M$3:$M$8,$J$3:$J$8) -> 1,330.14
C5: Size Group | D5: # Claims | E5: Total Loss | F5: Severity | J5: 1,000 | K5: =SUM(D$6:$D8)/$D$13 -> 0.613 | L5: =(SUM(E$6:$E8)+SUM(D9:$D$12)*J5)/$D$13 -> 638 | M5: =($K$11-L5)/(1-K5) -> 1,436.69 | N5: 1,426.51
C6: 0 – 100 | D6: 99 | E6: 5,000 | F6: =E6/D6 -> 51 | J6: 2,000 | K6: =SUM(D$6:$D9)/$D$13 -> 0.826 | L6: =(SUM(E$6:$E9)+SUM(D10:$D$12)*J6)/$D$13 -> 904 | M6: 1,666.67 | N6: 1,619.25
C7: 101 – 500 | D7: 293 | E7: 84,000 | F7: =E7/D7 -> 287 | J7: 4,000 | K7: =SUM(D$6:$D10)/$D$13 -> 0.953 | L7: =(SUM(E$6:$E10)+SUM(D11:$D$12)*J7)/$D$13 -> 1,098 | M7: 2,042.55 | N7: 2,004.73
C8: 501 – 1,000 | D8: 221 | E8: 162,000 | F8: 733 | J8: 5,000 | K8: =SUM(D$6:$D11)/$D$13 -> 0.973 | L8: =(SUM(E$6:$E11)+SUM(D12:$D$12)*J8)/$D$13 -> 1,136 | M8: 2,148.15 | N8: 2,197.47
C9: 1,001 – 2,000 | D9: 213 | E9: 305,000 | F9: 1,432 | J9: 10,000 | K9: =SUM(D$6:$D12)/$D$13 -> 1 | L9: =(SUM(E$6:$E12))/$D$13 -> 1194 | M9: NA | N9: NA
C10: 2,001 – 4,000 | D10: 127 | E10: 354,000 | F10: 2,787
C11: 4,001 – 5,000 | D11: 20 | E11: 91,000 | F11: 4,550 | J11: E[X] = | K11: =F13 -> 1,194
C12: 5,001 – 10,000 | D12: 27 | E12: 193,000 | F12: 7,148
C13: Total | D13: =SUM(D6:D12) -> 1,000 | E13: =SUM(E6:E12) -> 1,194,000 | F13: =E13/D13 -> 1,194 | J13: Since we can't graph in the Pearson VUE environment, we can try fitting a straight line using the FORECAST.LINEAR function.
J14: We can assess the goodness of fit via the R2 statistic as measured using the square of CORREL function
A15: (a) | B15: Calculate the empirical mean excess claim size distribution and identify the distribution. | J15: R2 = | K15: =CORREL(N3:N8,M3:M8)^2 -> 0.9899
A16: =INDEX('Point Grid'!$C$8:$I$28,MATCH($A$1,'Point Grid'!$A$8:$A$28,0),MATCH(A15,'Point Grid'!$C$7:$I$7,0)) -> 1
A17: 1 | J17: Since the R2 value is very close to 1 we deduce the mean excess claim size distribution
J18: follows a straight line and thus is best described using a Pareto distribution.
A19: (b) | B19: Using the distribution identified in part a.) above, calculate the empirical parameters
A20: =INDEX('Point Grid'!$C$8:$I$28,MATCH($A$1,'Point Grid'!$A$8:$A$28,0),MATCH(A19,'Point Grid'!$C$7:$I$7,0)) -> 1 | B20: associated with that distribution. | I20: b.) | J20: A Pareto distribution has
A21: 1
J22: Using LINEST on the fitted data allows us to get the parameters for y = mx + b
A23: (c) | B23: Identify a condition on the claim data set in order for the above analysis to produce | J23: m | K23: b
A24: =INDEX('Point Grid'!$C$8:$I$28,MATCH($A$1,'Point Grid'!$A$8:$A$28,0),MATCH(A23,'Point Grid'!$C$7:$I$7,0)) -> 0.25 | B24: an accurate distribution. | J24: =LINEST(N3:N8,J3:J8) -> 0.1927408007 | K24: 1233.767579
A25: 0.25
J26: Solving m for α yields α = | L26: =1/J24+1 -> 6.1883
J27: Then solving b for β yields β = | M27: =K24*(L26-1) -> 6,401.17
J28: These are the parameters of the fitted Pareto distribution.
I30: c.) | J30: We need there to be sufficiently many large claims in the data set so we can reliably estimate e(x) for large x values.

Sheet 22
A1: 22 | B1: Finished | F1: Navigator | I1: Solution
H2: b.) | I2: Large data sets can lead to dense clouds of deviance residuals which makes pattern recognition challenging.
A3: Points | B3: An actuary is about to peer review a GLM. They are refreshing their memory on some model | I3: The residuals should be binned prior to graphing. One way of doing this is to use binned working residuals.
A4: =INDEX('Point Grid'!B:B,MATCH('22'!A1,'Point Grid'!A:A,0)) -> 1.75 | B4: refinement techniques.
H5: c.) | I5: i.) TRUE
I6: ii.) FALSE - a good model has normally distributed deviance residuals
A7: (a) | B7: Match the following descriptions to the correct techniques. | I7: iii.) TRUE
A8: =INDEX('Point Grid'!$C$8:$I$29,MATCH($A$1,'Point Grid'!$A$8:$A$29,0),MATCH(A7,'Point Grid'!$C$7:$I$7,0)) -> 0.75 | I8: iv.) FALSE - a good model has normally distributed deviance residuals
A9: 0.75 | B9: Cook's distance | I9: v.) FALSE - this implies the chosen GLM distribution did not have enough right skewness.
B12: Cross validation
B15: Bootstrapping
A28: (b) | B28: Identify a weakness of graphically analyzing deviance residuals and briefly describe how to
A29: =INDEX('Point Grid'!$C$8:$I$29,MATCH($A$1,'Point Grid'!$A$8:$A$29,0),MATCH(A28,'Point Grid'!$C$7:$I$7,0)) -> 0.5 | B29: overcome it.
A30: 0.5
A32: (c) | B32: Identify all true statements below:
A33: =INDEX('Point Grid'!$C$8:$I$29,MATCH($A$1,'Point Grid'!$A$8:$A$29,0),MATCH(A32,'Point Grid'!$C$7:$I$7,0)) -> 0.5
A34: 0.5 | B34: i.) Deviance residuals should have no predictable pattern.
B35: ii.) The shape of the deviance residuals should match the choice of GLM distribution.
B36: iii.) Deviance residuals should be normally distributed with constant variance.
B37: iv.) When plotting deviance residuals, significant deviations from normality
B38: imply the model fit is good.
B39: v.) Both ends of a q-q plot for deviance residuals lie above the line of equality. This means the
B40: chosen GLM distribution was too skewed to the right.

Sheet 23
A1: 23 | B1: Finished | G1: Navigator | J1: Solution
I2: a.) | J2: The GLM relativity and the βj coefficients are not on the same scale because the GLM relativities have had their link function inverted.
A3: Points | B3: An actuary has built a GLM for a countrywide rating plan. | J3: Therefore, the rating factors are given by (GLM Relativity)*exp(βj)
A4: =INDEX('Point Grid'!B:B,MATCH('23'!A1,'Point Grid'!A:A,0)) -> 2 | B4: They are using a lasso credibility model with a log-link function to produce
B5: a rating plan for one of their mid-size states. | L5: Lasso
B6: The actuary uses the relativities from the countrywide GLM as the offsets. | J6: VehicleType | L6: Relativity
J7: =B13 -> Sedan | L7: =D13*EXP(F13) -> 1.000
A8: (a) | B8: Using the information below, construct the table of rating factors for | J8: =B14 -> Van | L8: =D14*EXP(F14) -> 0.860
A9: =INDEX('Point Grid'!$C$8:$I$30,MATCH($A$1,'Point Grid'!$A$8:$A$30,0),MATCH(A8,'Point Grid'!$C$7:$I$7,0)) -> 0.5 | B9: the VehicleType rating variable for the mid-size state. | J9: =B15 -> SUV | L9: 1.114
A10: 0.5 | J10: =B16 -> Luxury SUV | L10: 1.310
D11: GLM | F11: βj | G11: Mid-Size | J11: =B17 -> Convertible | L11: =D17*EXP(F17) -> 1.065
B12: VehicleType | D12: Relativity | F12: Coefficients | G12: Exposures
B13: Sedan | D13: 1.000 | F13: 0.0000 | G13: 250,000 | I13: b.) | J13: The complement is given full credibility when the βj coefficient is zero.
B14: Van | D14: 0.691 | F14: 0.2187 | G14: 15,000 | J14: This occurs for Sedans and Convertibles.
B15: SUV | D15: 1.187 | F15: -0.0631 | G15: 140,000 | J15: Sedans have the greatest exposure so the experience is likely to be too similar to the countrywide model for the lasso model to deviate.
B16: Luxury SUV | D16: 1.285 | F16: 0.0192 | G16: 53,000 | J16: Convertibles have next to no exposures so there is likely insufficient data to overcome the lasso credibility model penalty.
B17: Convertible | D17: 1.065 | F17: 0.0000 | G17: 500
I18: c.) | J18: Since Convertibles have next to no exposures the lasso credibility model doesn't deviate from the countrywide GLM relativity.
A19: (b) | B19: Identify which vehicle types have full credibility on their complement. | J19: If the Convertibles have limited exposures in the countrywide GLM dataset then the complement itself may be inappropriate.
A20: =INDEX('Point Grid'!$C$8:$I$30,MATCH($A$1,'Point Grid'!$A$8:$A$30,0),MATCH(A19,'Point Grid'!$C$7:$I$7,0)) -> 1 | B20: Briefly explain why. | J20: This would cause the Convertible relativity to be incorrect.
A21: 1
A23: (c) | B23: Briefly explain why the VehicleType relativity for Convertibles found in
A24: =INDEX('Point Grid'!$C$8:$I$30,MATCH($A$1,'Point Grid'!$A$8:$A$30,0),MATCH(A23,'Point Grid'!$C$7:$I$7,0)) -> 0.5 | B24: part a.) above may be incorrect.
A25: 0.5
